{"text_format":"1","workbook":"xlsx","n_sheets":1,"sheets":["List"],"not_rendered":{"charts":0,"images":2,"macros":0,"external_links":1,"defined_names":1,"comments":0,"pivot_tables":0},"unopened":[],"bounds":{"document_bytes":16777216,"sheet_cells":100000,"rows_first":2000,"rows_last":500,"rows_between":2000,"halvings":0,"cell_chars":16384,"cell_head_chars":4096},"cells_cut":0,"cells_raw":0,"read":"whole","date_system":"1900"}

{"sheet":"List","index":0,"n_rows":36,"n_cols":16,"rows_kept":36,"cut":false,"hidden":false,"merged":[[20,1,20,5],[21,1,21,5],[17,1,17,5],[16,1,16,5],[18,1,18,5],[19,1,19,5],[15,1,15,5],[1,0,1,7],[2,0,2,7],[11,1,11,5],[12,1,12,5],[14,1,14,5],[13,1,13,5]]}
[]
["ОТЧЕТ ЗА ИЗПЪЛНЕНИЕ НА ДОГОВОРА ПО ЧЛ.32, АЛ.2 ОТ НАРЕДБА №2 от 2011 г. ЗА УСЛОВИЯТА И РЕДА ЗА ИЗВЪРШВАНЕ НА СЪДЕБНОМЕДИЦИНСКИТЕ, СЪДЕБНОПСИХИАТРИЧНИТЕ И СЪДЕБНОПСИХОЛОГИЧНИТЕ ЕКСПЕРТИЗИ, ВКЛЮЧИТЕЛНО И ЗА ЗАПЛАЩАНЕ НА РАЗХОДИТЕ НА ЛЕЧЕБНИТЕ ЗАВЕДЕНИЯ НА",null,null,null,null,null,null,null,null,null,1000,"МБАЛ Благоевград АД","101505152","0103211001",null,{"$f":"CONCATENATE(K2,\" \",L2)","v":"1000 МБАЛ Благоевград АД"}]
[{"$f":"VLOOKUP(H4,K2:N36,2,0)","v":{"$error":"#N/A"}},null,null,null,null,null,null,null,null,null,1001,"УМБАЛ – Бургас АД","102274111","0204211001",null,{"$f":"CONCATENATE(K3,\" \",L3)","v":"1001 УМБАЛ – Бургас АД"}]
[null,null,null,null,null,null,"Код на ЛЗ ",null,null,null,1002,"УМБАЛ Св. Марина ЕАД","103562052","0306211001",null,"1002 УМБАЛ Св. Марина ЕАД"]
[null,null,null,null,null,null,null,null,null,null,1003,"МБАЛ Св. Анна – Варна АД","000090019","0306211002",null,"1003 МБАЛ Св. Анна – Варна АД"]
[null,null,null,null,null,null,"Отчетен период","01.01.2022-31.03.2022",null,"2021-01-31",1004,"МБАЛ д-р Ст. Черкезов АД","104510514","0404211001",null,"1004 МБАЛ д-р Ст. Черкезов АД"]
[null,null,null,null,null,null,null,null,null,"2021-02-28",1005,"МБАЛ Св. Петка АД","105515902","0509211001",null,"1005 МБАЛ Св. Петка АД"]
[null,null,null,null,null,null,"ЛЗ ЕИК ",{"$f":"VLOOKUP(H4,K2:N36,3,0)","v":{"$error":"#N/A"}},null,"2021-03-31",1006,"МБАЛ Хр. Ботев АД","106518890","0610211001",null,"1006 МБАЛ Хр. Ботев АД"]
[null,null,null,null,null,null,null,null,null,"2021-04-30",1007,"МБАЛ д-р Тота Венкова АД","107507217","0705211001",null,"1007 МБАЛ д-р Тота Венкова АД"]
[null,null,null,null,null,null,"РЕГ.N",{"$f":"VLOOKUP(H4,K2:N36,4,0)","v":{"$error":"#N/A"}},null,"2021-05-31",1008,"МБАЛ – Добрич АД","124141302","0828211001",null,"1008 МБАЛ – Добрич АД"]
[null,null,null,null,null,null,null,null,null,"2021-06-30",1009,"МБАЛ д-р Ат. Дафовски АД","108501669","0916211001",null,"1009 МБАЛ д-р Ат. Дафовски АД"]
[null,"Дейности по реда на Наредбата",null,null,null,null,"Брой","Изразходвани средства",null,"2021-07-31",1010,"МБАЛ д-р Н. Василиев АД","109080582","1029211001",null,"1010 МБАЛ д-р Н. Василиев АД"]
[1,"Поддържане и подобряване на материално-техническата обезпеченост",null,null,null,null,null,null,null,"2021-08-31",1011,"МБАЛ проф. П. Стоянов АД","110503990","1118211001",null,"1011 МБАЛ проф. П. Стоянов АД"]
[2,"Поддържане и подобряване на капацитета от медицински специалисти и помощен персонал",null,null,null,null,"х"]
[null,"в т.ч. за персонал в структурата",null,null,null,null,"х","х",null,"2021-09-30",1012,"МБАЛ д-р Ст. Илиев АД","111047073","1229211001",null,"1012 МБАЛ д-р Ст. Илиев АД"]
[null,"лекар със специалност Съдебна медицина",null,null,null,null,null,null,null,"2021-10-31",1013,"МБАЛ – Пазарджик АД","130072241","1319211001",null,"1013 МБАЛ – Пазарджик АД"]
[null,"лице с професионална квалификация Химик "]
[null,"лице с професионална квалификация Биолог или Молекулярен биолог"]
[null,"лице с професионална квалификация Медицински лаборант "]
[null,"лице с професионална квалификация Химик-техник",null,null,null,null,null,null,null,"2021-11-30",1014,"МБАЛ Рахила Ангелова АД","113513858","1432211001",null,"1014 МБАЛ Рахила Ангелова АД"]
[null,"технически изпълнител/санитар/друго лице "]
[3,"Брой извършени аутопсии",null,null,null,null,null,"х",null,null,1019,"УМБАЛ Канев АД","117505556","1827211001",null,"1019 УМБАЛ Канев АД"]
[null,null,null,null,null,null,null,null,null,null,1020,"МБАЛ Силистра АД","118501906","1931211001",null,"1020 МБАЛ Силистра АД"]
[null,null,null,null,null,null,null,null,null,"01.01.2022-31.03.2022",1021,"МБАЛ д-р Ив. Селимински АД","119502733","2020211001",null,"1021 МБАЛ д-р Ив. Селимински АД"]
[null,null,null,null,null,null,null,null,null,"01.04.2022-30.06.2022",1022,"МБАЛ д-р Бр. Шукеров АД","120503871","2131211001",null,"1022 МБАЛ д-р Бр. Шукеров АД"]
[null,null,null,null,null,null,null,null,null,"01.07.2022-30.09.2022",1023,"УМБАЛ Царица Йоанна – ИСУЛ ЕАД","831605806","2201211002",null,"1023 УМБАЛ Царица Йоанна – ИСУЛ ЕАД"]
[null,null,null,null,null,null,null,null,null,"01.10.2022-31.12.2022",1024,"УМБАЛСМ Н. И. Пирогов ЕАД","130345786","2201211003",null,"1024 УМБАЛСМ Н. И. Пирогов ЕАД"]
[null,null,null,null,null,null,null,null,null,null,1025,"УМБАЛ Александровска ЕАД","831605795","2201211055",null,"1025 УМБАЛ Александровска ЕАД"]
[null,null,null,null,null,null,null,null,null,null,1026,"МБАЛ Лозенец ЕАД","205967328","2201911040",null,"1026 МБАЛ Лозенец ЕАД"]
[null,null,null,null,null,null,null,null,null,null,1027,"МБАЛ Св. Анна АД","130367715","2201211001",null,"1027 МБАЛ Св. Анна АД"]
[null,null,null,null,null,null,null,null,null,null,1028,"УМБАЛ проф. Ст. Киркович АД","123535874","2431211002",null,"1028 УМБАЛ проф. Ст. Киркович АД"]
[null,null,null,null,null,null,null,null,null,null,1029,"МБАЛ Търговище АД","125501290","2535211001",null,"1029 МБАЛ Търговище АД"]
[null,null,null,null,null,null,null,null,null,null,1030,"МБАЛ Хасково","126529015","2634211001",null,"1030 МБАЛ Хасково"]
[null,null,null,null,null,null,null,null,null,null,1031,"МБАЛ Шумен АД","127521092","2730211001",null,"1031 МБАЛ Шумен АД"]
[null,null,null,null,null,null,null,null,null,null,1032,"МБАЛ Св. Пантелеймон АД","128501598","2826211001",null,"1032 МБАЛ Св. Пантелеймон АД"]
[null,null,null,null,null,null,null,null,null,null,1033,"ВМА","129000273","2201911042",null,"1033 ВМА"]